fUSD/lending_fUSD_20250120
["ID","MTS","AMOUNT","RATE_DAILY","PERIOD"]
[349745054,1737409841176,-500.0,0.00021547,2]
[349745055,1737409841185,-799.06,0.00021547,2]
[349745056,1737409841194,-500.0,0.00021547,2]
[349745057,1737409841203,-500.0,0.00021547,2]
[349745058,1737409841212,-1128.49,0.00021547,2]
[349745059,1737409841221,-500.0,0.00021547,2]
[349745060,1737409841230,-1147.02,0.00021547,2]
[349745061,1737409841239,-500.0,0.00021547,2]
[349745062,1737409841248,-664.96,0.00021547,2]
[349745063,1737409841257,-500.0,0.00021547,2]
[349745064,1737409841267,-500.0,0.00021547,2]
[349745065,1737409841276,-500.0,0.00021547,2]
[349745066,1737409841285,-500.0,0.00021547,2]
[349745067,1737409841294,-1036.31,0.00021547,2]
[349745068,1737409841304,-500.0,0.00021547,2]
[349745069,1737409841315,-289.41444705,0.00021547,2]
[349745070,1737409841324,-643.79,0.00021547,2]
[349745071,1737409841334,-500.0,0.00021547,2]
[349745072,1737409841343,-1634.87,0.00021547,2]
[349745073,1737409841352,-922.66,0.00021547,2]
[349745074,1737409841362,-2088.41,0.00021547,2]
[349745075,1737409841371,-544.4,0.00021547,2]
[349745076,1737409841380,-1489.05,0.00021547,2]
[349745077,1737409841390,-639.34,0.00021547,2]
[349745078,1737409841399,-561.97,0.00021547,2]
[349745079,1737409841408,-1002.96,0.00021547,2]
[349745080,1737409841417,-807.95,0.00021547,2]
[349745081,1737409841427,-664.68,0.00021547,2]
[349745082,1737409841436,-1330.08,0.00021547,2]
[349745083,1737409841444,-500.0,0.00021547,2]
[349745084,1737409841453,-516.97,0.00021547,2]
[349745085,1737409841462,-666.15,0.00021547,2]
[349745086,1737409841472,-500.0,0.00021547,2]
[349745087,1737409841481,-1378.08,0.00021547,2]
[349745088,1737409841490,-500.0,0.00021547,2]
[349745089,1737409841499,-1222.15,0.00021547,2]
[349745090,1737409841509,-500.0,0.00021547,2]
[349745091,1737409841518,-794.54,0.00021547,2]
[349745092,1737409841528,-500.0,0.00021547,2]
[349745093,1737409841537,-500.0,0.00021547,2]
[349745094,1737409841546,-500.0,0.00021547,2]
[349745095,1737409841555,-639.93,0.00021547,2]
[349745096,1737409841568,-500.0,0.00021547,2]
[349745097,1737409841578,-768.61,0.00021547,2]
[349745098,1737409841587,-500.0,0.00021547,2]
[349745099,1737409841597,-532.17,0.00021547,2]
[349745100,1737409841607,-667.34,0.00021547,2]
[349745101,1737409841618,-769.97,0.00021547,2]
[349745102,1737409841628,-698.17,0.00021547,2]
[349745103,1737409841637,-500.0,0.00021547,2]
[349745104,1737409841647,-500.0,0.00021547,2]
[349745105,1737409841658,-1618.27,0.00021547,2]
[349745106,1737409841667,-500.0,0.00021547,2]
[349745107,1737409841676,-1566.77,0.00021547,2]
[349745108,1737409841686,-500.0,0.00021547,2]
[349745109,1737409841696,-1216.5,0.00021547,2]
[349745110,1737409841705,-500.0,0.00021547,2]
[349745111,1737409841715,-1272.64,0.00021547,2]
[349745112,1737409841724,-908.22,0.00021547,2]
[349745113,1737409841734,-500.0,0.00021547,2]
[349745114,1737409841744,-772.09,0.00021547,2]
[349745115,1737409841753,-500.0,0.00021547,2]
[349745116,1737409841763,-500.0,0.00021547,2]
[349745117,1737409841772,-508.29,0.00021547,2]
[349745118,1737409841781,-500.0,0.00021547,2]
[349745119,1737409841790,-500.0,0.00021547,2]
[349745120,1737409841800,-513.7,0.00021547,2]
[349745121,1737409841811,-500.0,0.00021547,2]
[349745122,1737409841820,-500.0,0.00021547,2]
[349745123,1737409841830,-500.0,0.00021547,2]
[349745124,1737409841839,-1492.94,0.00021547,2]
[349745125,1737409841848,-706.16,0.00021547,2]
[349745126,1737409841858,-500.0,0.00021547,2]
[349745127,1737409841867,-733.93,0.00021547,2]
[349745128,1737409841876,-500.0,0.00021547,2]
[349745129,1737409841885,-500.0,0.00021547,2]
[349745130,1737409841895,-500.0,0.00021547,2]
[349745131,1737409841904,-500.0,0.00021547,2]
[349745132,1737409841914,-1894.65,0.00021547,2]
[349745133,1737409841923,-500.0,0.00021547,2]
[349745134,1737409841933,-511.81,0.00021547,2]
[349745135,1737409841942,-500.0,0.00021547,2]
[349745136,1737409841952,-500.0,0.00021547,2]
[349745137,1737409841962,-500.0,0.00021547,2]
[349745138,1737409841972,-500.0,0.00021547,2]
[349745139,1737409841982,-875.95,0.00021547,2]
[349745140,1737409841992,-500.0,0.00021547,2]
[349745141,1737409842001,-500.0,0.00021547,2]
[349745142,1737409842010,-500.0,0.00021547,2]
[349745143,1737409842019,-572.83523255,0.00021564,2]
[349745144,1737409842029,-529.42778694,0.00021567,2]
[349745145,1737409842038,-309.17986762,0.00021567,2]
[349745146,1737409842050,-455.43321623,0.00021666,2]
[349745147,1737409842063,-572.83523255,0.00021676,2]
[349745148,1737409842073,-529.42778694,0.00021678,2]
[349745149,1737409842082,-309.17986762,0.00021678,2]
[349745150,1737409842092,-2258.14914757,0.00021679,2]
[349745151,1737409842102,-1982.85,0.00021685,7]
[349745152,1737409842112,-1982.85,0.00021685,7]
[349745153,1737409842121,-1982.85,0.00021685,7]
[349745154,1737409842132,-1982.85,0.00021685,7]
[349745155,1737409842142,-201.0,0.000217,2]
[349745156,1737409842189,-214.0,0.000217,2]
[349745157,1737409842198,-165.83760736,0.00021716,2]
[349745158,1737409842208,-1429.83245865,0.00021732,2]
[349745159,1737409842217,-1479.19031721,0.00021734,2]
[349745160,1737409842227,-200.0,0.00021738,2]
[349745161,1737409842236,-226.7872277,0.00021738,2]
[349745162,1737409842246,-200.0,0.00021738,2]
[349745163,1737409842256,-200.0,0.00021738,2]
[349745164,1737409842265,-1790.97127291,0.00021739,2]
[349745165,1737409842275,-17892.44343993,0.00021741,2]
[349745166,1737409842284,-200.0,0.00021746,2]
[349745167,1737409842293,-1429.83245865,0.0002175,2]
[349745168,1737409842303,-1388.5,0.00021752,2]
[349745169,1737409842313,-1429.83245865,0.00021752,2]
[349745170,1737409842324,-389.63865013,0.00021753,2]
[349745171,1737409842333,-226.7872277,0.00021757,2]
[349745172,1737409842342,-1985.91419695,0.00021758,2]
[349745173,1737409842352,-1479.19031721,0.00021763,2]
[349745174,1737409842362,-200.0,0.00021764,2]
[349745175,1737409842371,-200.0,0.00021764,2]
[349745176,1737409842381,-2290.7939684,0.00021765,2]
[349745177,1737409842391,-1985.91419695,0.00021768,2]
[349745178,1737409842401,-226.7872277,0.00021768,2]
[349745179,1737409842410,-1985.91419695,0.00021771,2]
[349745180,1737409842420,-2290.7939684,0.00021779,2]
[349745181,1737409842429,-239.29026823,0.00021782,2]
[349745182,1737409842439,-1429.83245865,0.00021783,2]
[349745183,1737409842448,-1479.19031721,0.00021785,2]
[349745185,1737409842457,-572.83523255,0.00021788,2]
[349745187,1737409842467,-239.29026823,0.00021788,2]
[349745189,1737409842476,-529.42778694,0.00021789,2]
[349745191,1737409842485,-309.17986762,0.00021789,2]
[349745194,1737409842495,-200.0,0.00021794,2]
[349745197,1737409842504,-226.7872277,0.00021795,2]
[349745200,1737409842515,-389.63865013,0.00021795,2]
[349745203,1737409842524,-2123.11783763,0.00021796,2]
[349745205,1737409842534,-171.261219,0.00021802,2]
[349745207,1737409842543,-17892.44343993,0.00021806,2]
[349745209,1737409842552,-200.0,0.00021808,2]
[349745210,1737409842562,-500.0,0.00021811,2]
[349745211,1737409842572,-500.0,0.00021811,2]
[349745212,1737409842581,-239.29026823,0.00021812,2]
[349745213,1737409842590,-500.0,0.00021813,2]
[349745214,1737409842599,-500.0,0.00021813,2]
[349745215,1737409842608,-500.0,0.00021813,2]
[349745216,1737409842617,-500.0,0.00021813,2]
[349745217,1737409842626,-500.0,0.00021813,2]
[349745218,1737409842636,-500.0,0.00021813,2]
[349745219,1737409842646,-500.0,0.00021813,2]
[349745220,1737409842656,-500.0,0.00021813,2]
[349745221,1737409842666,-500.0,0.00021813,2]
[349745222,1737409842676,-633.61,0.00021813,2]
[349745223,1737409842685,-648.08085803,0.00021813,2]
[349745224,1737409842695,-500.0,0.00021813,2]
[349745225,1737409842704,-500.0,0.00021813,2]
[349745226,1737409842714,-500.0,0.00021813,2]
[349745227,1737409842722,-500.0,0.00021813,2]
[349745228,1737409842732,-506.04,0.00021813,2]
[349745229,1737409842741,-500.0,0.00021813,2]
[349745230,1737409842751,-500.0,0.00021813,2]
[349745231,1737409842760,-500.0,0.00021813,2]
[349745232,1737409842770,-500.0,0.00021813,2]
[349745233,1737409842780,-411.39904227,0.00021813,2]
[349745234,1737409842790,-1429.83245865,0.00021814,2]
[349745235,1737409842799,-200.0,0.00021814,2]
[349745236,1737409842808,-200.0,0.00021817,2]
[349745237,1737409842819,-2290.7939684,0.00021817,2]
[349745238,1737409842828,-8500.0,0.00021819,2]
[349745239,1737409842837,-200.0,0.0002182,2]
[349745240,1737409842846,-372.560492,0.00021821,2]
[349745241,1737409842855,-488.200816,0.00021821,2]
[349745242,1737409842864,-500.0,0.00021821,2]
[349745243,1737409842874,-500.0,0.00021821,2]
[349745244,1737409842883,-597.58,0.00021821,2]
[349745245,1737409842893,-500.0,0.00021821,2]
[349745246,1737409842902,-500.0,0.00021821,2]
[349745247,1737409842912,-500.0,0.00021821,2]
[349745248,1737409842921,-470.60811375,0.00021821,2]
[349745249,1737409842930,-500.0,0.00021821,2]
[349745250,1737409842940,-500.0,0.00021821,2]
[349745251,1737409842949,-500.0,0.00021821,2]
[349745252,1737409842958,-500.0,0.00021821,2]
[349745253,1737409842971,-500.0,0.00021821,2]
[349745254,1737409842981,-500.0,0.00021821,2]
[349745255,1737409842990,-500.0,0.00021821,2]
[349745256,1737409842999,-500.0,0.00021821,2]
[349745257,1737409843008,-500.0,0.00021821,2]
[349745258,1737409843018,-500.0,0.00021821,2]
[349745259,1737409843027,-500.0,0.00021821,2]
[349745260,1737409843036,-500.0,0.00021821,2]
[349745261,1737409843047,-500.0,0.00021821,2]
[349745262,1737409843060,-500.0,0.00021821,2]
[349745263,1737409843070,-500.0,0.00021821,2]
[349745264,1737409843079,-500.0,0.00021821,2]
[349745265,1737409843091,-500.0,0.00021821,2]
[349745266,1737409843099,-506.63,0.00021821,2]
[349745267,1737409843109,-633.95,0.00021821,2]
[349745268,1737409843118,-500.0,0.00021821,2]
[349745269,1737409843128,-500.0,0.00021821,2]
[349745270,1737409843137,-968.95,0.00021821,2]
[349745271,1737409843146,-500.0,0.00021821,2]
[349745272,1737409843155,-500.0,0.00021821,2]
[349745273,1737409843165,-1046.1,0.00021821,2]
[349745274,1737409843174,-751.52,0.00021821,2]
[349745275,1737409843183,-1913.32,0.00021821,2]
[349745276,1737409843193,-500.0,0.00021821,2]
[349745277,1737409843203,-916.28,0.00021821,2]
[349745278,1737409843212,-500.0,0.00021821,2]
[349745279,1737409843222,-500.0,0.00021821,2]
[349745280,1737409843231,-799.06,0.00021821,2]
[349745281,1737409843241,-500.0,0.00021821,2]
[349745282,1737409843250,-500.0,0.00021821,2]
[349745283,1737409843259,-1128.49,0.00021821,2]
[349745285,1737409843268,-500.0,0.00021821,2]
[349745287,1737409843277,-1147.02,0.00021821,2]
[349745289,1737409843286,-500.0,0.00021821,2]
[349745291,1737409843295,-664.96,0.00021821,2]
[349745293,1737409843305,-500.0,0.00021821,2]
[349745294,1737409843315,-500.0,0.00021821,2]
[349745295,1737409843325,-500.0,0.00021821,2]
[349745296,1737409843334,-500.0,0.00021821,2]
[349745297,1737409843343,-1036.31,0.00021821,2]
[349745298,1737409843352,-500.0,0.00021821,2]
[349745299,1737409843362,-643.79,0.00021821,2]
[349745300,1737409843371,-500.0,0.00021821,2]
[349745301,1737409843380,-1634.87,0.00021821,2]
[349745302,1737409843389,-922.66,0.00021821,2]
[349745303,1737409843398,-2088.41,0.00021821,2]
[349745304,1737409843407,-544.4,0.00021821,2]
[349745305,1737409843416,-1489.05,0.00021821,2]
[349745306,1737409843425,-639.34,0.00021821,2]
[349745307,1737409843435,-561.97,0.00021821,2]
[349745308,1737409843444,-1002.96,0.00021821,2]
[349745309,1737409843453,-807.95,0.00021821,2]
[349745310,1737409843463,-664.68,0.00021821,2]
[349745311,1737409843473,-1330.08,0.00021821,2]
[349745312,1737409843483,-500.0,0.00021821,2]
[349745313,1737409843492,-516.97,0.00021821,2]
[349745314,1737409843502,-666.15,0.00021821,2]
[349745315,1737409843514,-500.0,0.00021821,2]
[349745316,1737409843524,-1378.08,0.00021821,2]
[349745317,1737409843534,-500.0,0.00021821,2]
[349745318,1737409843543,-1222.15,0.00021821,2]
[349745319,1737409843553,-500.0,0.00021821,2]
[349745320,1737409843563,-794.54,0.00021821,2]
[349745321,1737409843572,-500.0,0.00021821,2]
[349745322,1737409843582,-500.0,0.00021821,2]
[349745323,1737409843592,-500.0,0.00021821,2]
[349745324,1737409843602,-639.93,0.00021821,2]
[349745325,1737409843611,-500.0,0.00021821,2]
[349745326,1737409843620,-768.61,0.00021821,2]
[349745327,1737409843630,-500.0,0.00021821,2]
[349745328,1737409843640,-532.17,0.00021821,2]
[349745329,1737409843650,-667.34,0.00021821,2]
[349745330,1737409843660,-769.97,0.00021821,2]
[349745331,1737409843670,-698.17,0.00021821,2]
[349745332,1737409843680,-500.0,0.00021821,2]
[349745333,1737409843689,-500.0,0.00021821,2]
[349745334,1737409843699,-1618.27,0.00021821,2]
[349745335,1737409843708,-500.0,0.00021821,2]
[349745336,1737409843717,-1566.77,0.00021821,2]
[349745337,1737409843727,-500.0,0.00021821,2]
[349745338,1737409843736,-1216.5,0.00021821,2]
[349745339,1737409843746,-209.09,0.00021821,2]
[349745340,1737409843755,-1272.64,0.00021821,2]
[349745341,1737409843765,-908.22,0.00021821,2]
[349745342,1737409843774,-500.0,0.00021821,2]
[349745343,1737409843784,-772.09,0.00021821,2]
[349745344,1737409843794,-500.0,0.00021821,2]
[349745345,1737409843803,-500.0,0.00021821,2]
[349745346,1737409843813,-508.29,0.00021821,2]
[349745347,1737409843824,-500.0,0.00021821,2]
[349745348,1737409843834,-500.0,0.00021821,2]
[349745349,1737409843844,-513.7,0.00021821,2]
[349745350,1737409843854,-500.0,0.00021821,2]
[349745351,1737409843864,-500.0,0.00021821,2]
[349745352,1737409843874,-500.0,0.00021821,2]
[349745353,1737409843884,-1492.94,0.00021821,2]
[349745354,1737409843893,-706.16,0.00021821,2]
[349745355,1737409843903,-212.35322276,0.00021821,2]
[349745356,1737409843913,-733.93,0.00021821,2]
[349745357,1737409843923,-500.0,0.00021821,2]
[349745358,1737409843932,-500.0,0.00021821,2]
[349745359,1737409843942,-500.0,0.00021821,2]
[349745360,1737409843952,-500.0,0.00021821,2]
[349745361,1737409843961,-1894.65,0.00021821,2]
[349745362,1737409843970,-500.0,0.00021821,2]
[349745363,1737409843980,-511.81,0.00021821,2]
[349745364,1737409843989,-500.0,0.00021821,2]
[349745365,1737409843999,-500.0,0.00021821,2]
[349745366,1737409844009,-500.0,0.00021821,2]
[349745367,1737409844019,-500.0,0.00021821,2]
[349745368,1737409844028,-875.95,0.00021821,2]
[349745369,1737409844038,-500.0,0.00021821,2]
[349745370,1737409844048,-500.0,0.00021821,2]
[349745371,1737409844062,-500.0,0.00021821,2]
[349745372,1737409844074,-17892.44343993,0.00021824,2]
[349745373,1737409844084,-17892.44343993,0.00021825,2]
[349745374,1737409844094,-2123.11783763,0.00021825,2]
[349745375,1737409844104,-1479.19031721,0.00021826,2]
[349745376,1737409844114,-200.0,0.0002183,2]
[349745377,1737409844125,-389.63865013,0.00021831,2]
[349745378,1737409844135,-1479.19031721,0.00021837,2]
[349745379,1737409844145,-1790.97127291,0.00021847,2]
[349745380,1737409844154,-389.63865013,0.00021855,2]
[349745381,1737409844164,-389.63865013,0.0002186,2]
[349745382,1737409844173,-200.0,0.00021864,2]
[349745383,1737409844182,-1985.91419695,0.00021864,2]
[349745384,1737409844192,-1790.97127291,0.00021864,2]
[349745385,1737409844202,-2132.53727986,0.00021867,2]
[349745386,1737409844211,-2132.53727986,0.00021868,2]
[349745387,1737409844221,-2132.53727986,0.00021869,2]
[349745388,1737409844230,-2123.11783763,0.0002187,2]
[349745389,1737409844240,-239.29026823,0.0002187,2]
[349745390,1737409844249,-150.0,0.00021873,2]
[349745391,1737409844259,-2132.53727986,0.00021877,2]
[349745392,1737409844268,-200.0,0.00021878,2]
[349745393,1737409844278,-2132.53727986,0.00021878,2]
[349745394,1737409844288,-239.29026823,0.00021879,2]
[349745395,1737409844297,-2290.7939684,0.00021879,2]
[349745396,1737409844307,-200.0,0.0002188,2]
[349745397,1737409844316,-1793.2228839,0.00021884,2]
[349745398,1737409844326,-473.3871874,0.00021884,2]
[349745399,1737409844336,-200.0,0.00021884,2]
[349745400,1737409844349,-1212.2903484,0.00021885,2]
[349745401,1737409844365,-320.0286609,0.00021885,2]
[349745402,1737409844375,-17892.44343993,0.00021885,2]
[349745403,1737409844384,-1790.97127291,0.00021888,2]
[349745404,1737409844394,-226.7872277,0.0002189,2]
[349745405,1737409844404,-2000.0,0.0002189,2]
[349745406,1737409844413,-2000.0,0.0002189,2]
[349745407,1737409844423,-2000.0,0.0002189,2]
[349745408,1737409844433,-500.0,0.0002189,2]
[349745409,1737409844443,-1790.97127291,0.00021891,2]
[349745410,1737409844452,-5800.0,0.00021892,2]
[349745411,1737409844462,-2123.11783763,0.00021894,2]
[349745412,1737409844472,-1985.91419695,0.00021896,2]
[349745413,1737409844483,-2290.7939684,0.00021897,2]
[349745414,1737409844493,-150.0,0.00021899,2]
[349745415,1737409844503,-150.0,0.00021899,2]
[349745416,1737409844514,-150.0,0.00021899,2]
[349745417,1737409844524,-150.0,0.00021899,2]
[349745418,1737409844534,-150.0,0.00021899,2]
[349745419,1737409844545,-82205.7616093,0.00021899,2]
[349745420,1737409844555,-5478.13623304,0.00021899,2]
[349745421,1737409844566,-176.28432287,0.00021899,2]
[349745422,1737409844576,-3121.2222435,0.00021899,2]
[349745423,1737409844586,-3765.69863587,0.00021899,2]
[349745424,1737409844596,-9105.20964417,0.00021899,2]
[349745425,1737409844605,-2123.11783763,0.00021899,2]
[349745426,1737409844615,-5384.05799188,0.000219,2]
[349745427,1737409844624,-2000.0,0.000219,2]
[349745428,1737409844634,-2000.0,0.000219,2]
[349745429,1737409844643,-2000.0,0.000219,2]
[349745430,1737409844652,-2000.0,0.000219,2]
[349745431,1737409844663,-2000.0,0.000219,2]
[349745432,1737409844673,-2000.0,0.000219,2]
[349745433,1737409844683,-2000.0,0.000219,2]
[349745434,1737409844693,-2000.0,0.000219,2]
[349745435,1737409844702,-2000.0,0.000219,2]
[349745436,1737409844712,-550.43070698,0.000219,2]
[349745437,1737409844722,-2000.0,0.000219,2]
[349745438,1737409844732,-5026.91649023,0.000219,2]
[349745439,1737409844741,-1140.3,0.000219,2]
[349745440,1737409844751,-5800.0,0.000219,2]
[349745441,1737409844762,-165.83760736,0.000219,2]
[349745442,1737409844772,-572.83523255,0.000219,2]
[349745443,1737409844782,-361.985,0.000219,2]
[349745444,1737409844791,-1094.77194037,0.000219,2]
[349745445,1737409844801,-1094.77194037,0.000219,2]
[349745446,1737409844810,-1094.77194037,0.000219,2]
[349745447,1737409844821,-1094.77194037,0.000219,2]
[349745448,1737409844830,-1094.77194037,0.000219,2]
[349745449,1737409844839,-1094.77194037,0.000219,2]
[349745450,1737409844849,-1094.77194037,0.000219,2]
[349745451,1737409844859,-1094.77194037,0.000219,2]
[349745452,1737409844869,-1094.77194037,0.000219,2]
[349745453,1737409844879,-1094.77194037,0.000219,2]
[349745454,1737409844889,-2422.24,0.000219,31]
[349745455,1737409844899,-2422.24,0.000219,31]
[349745456,1737409844908,-2422.24,0.000219,31]
[349745457,1737409844918,-2422.24,0.000219,31]
[349745458,1737409844928,-2422.24,0.000219,31]
[349745459,1737409844937,-2422.24,0.000219,31]
[349745460,1737409844947,-2422.24,0.000219,31]
[349745461,1737409844958,-2422.24,0.000219,31]
[349745462,1737409844967,-2422.24,0.000219,31]
[349745463,1737409844977,-2422.24,0.000219,31]
[349745464,1737409844986,-2422.24,0.000219,31]
[349745465,1737409844996,-2422.24,0.000219,31]
[349745466,1737409845006,-2422.24,0.000219,31]
[349745467,1737409845016,-2422.24,0.000219,31]
[349745468,1737409845026,-2422.24,0.000219,31]
[349745469,1737409845035,-2422.24,0.000219,31]
[349745470,1737409845045,-529.42778694,0.000219,2]
[349745471,1737409845056,-1005.02732918,0.000219,2]
[349745472,1737409845066,-66908.24894063,0.000219,2]
[349745473,1737409845076,-309.17986762,0.000219,2]
[349745474,1737409845087,-1849.8767603,0.000219,2]
[349745475,1737409845098,-631.3578129,0.00021905,2]
[349745476,1737409845108,-166.6701345,0.00021905,2]
[349745477,1737409845118,-500.0,0.00021917,3]
[349745478,1737409845128,-500.0,0.00021917,3]
[349745479,1737409845138,-500.0,0.00021917,3]
[349745480,1737409845147,-500.0,0.00021917,3]
[349745481,1737409845157,-4000.0,0.00021918,2]
[349745482,1737409845167,-150.0,0.00021918,2]
[349745483,1737409845176,-398.8967656,0.0002192,2]
[349745484,1737409845185,-398.8967656,0.0002192,2]
[349745485,1737409845195,-398.8967656,0.0002192,2]
[349745486,1737409845205,-398.8967656,0.0002192,2]
[349745487,1737409845215,-398.8967656,0.0002192,2]
[349745488,1737409845224,-398.8967656,0.0002192,2]
[349745489,1737409845234,-398.8967656,0.0002192,2]
[349745490,1737409845243,-398.8967656,0.0002192,2]
[349745491,1737409845253,-398.8967656,0.0002192,2]
[349745492,1737409845263,-398.8967656,0.0002192,2]
[349745493,1737409845273,-398.8967656,0.0002192,2]
[349745494,1737409845283,-398.8967656,0.0002192,2]
[349745495,1737409845292,-398.8967656,0.0002192,2]
[349745496,1737409845302,-398.8967656,0.0002192,2]
[349745497,1737409845312,-398.8967656,0.0002192,2]
[349745498,1737409845323,-398.8967656,0.0002192,2]
[349745499,1737409845332,-398.8967656,0.0002192,2]
[349745500,1737409845342,-398.8967656,0.0002192,2]
[349745501,1737409845351,-398.8967656,0.0002192,2]
[349745502,1737409845362,-398.89,0.0002192,2]
[349745503,1737409845371,-930.75911973,0.0002192,2]
[349745504,1737409845380,-930.75911973,0.0002192,2]
[349745505,1737409845390,-930.75911973,0.0002192,2]
[349745506,1737409845399,-930.75911973,0.0002192,2]
[349745507,1737409845410,-930.75911973,0.0002192,2]
[349745508,1737409845420,-930.75911973,0.0002192,2]
[349745510,1737409845430,-930.75911973,0.0002192,2]
[349745511,1737409845440,-930.75911973,0.0002192,2]
[349745512,1737409845449,-930.75911973,0.0002192,2]
[349745513,1737409845459,-930.75911973,0.0002192,2]
[349745514,1737409845469,-930.75911973,0.0002192,2]
[349745515,1737409845479,-930.75911973,0.0002192,2]
[349745516,1737409845488,-930.75911973,0.0002192,2]
[349745518,1737409845498,-930.75911973,0.0002192,2]
[349745520,1737409845508,-930.75911973,0.0002192,2]
[349745522,1737409845518,-930.75911973,0.0002192,2]
[349745523,1737409845528,-930.75911973,0.0002192,2]
[349745524,1737409845537,-930.75911973,0.0002192,2]
[349745525,1737409845547,-930.75911973,0.0002192,2]
[349745526,1737409845557,-930.75,0.0002192,2]
[349745527,1737409845566,-1059.90963837,0.0002192,2]
[349745529,1737409845576,-1059.90963837,0.0002192,2]
[349745530,1737409845585,-1059.90963837,0.0002192,2]
[349745532,1737409845595,-1059.90963837,0.0002192,2]
[349745534,1737409845605,-1059.90963837,0.0002192,2]
[349745536,1737409845615,-1059.90963837,0.0002192,2]
[349745539,1737409845624,-1059.90963837,0.0002192,2]
[349745541,1737409845633,-1059.90963837,0.0002192,2]
[349745544,1737409845643,-1059.90963837,0.0002192,2]
[349745547,1737409845653,-1059.90963837,0.0002192,2]
[349745550,1737409845663,-1059.90963837,0.0002192,2]
[349745552,1737409845673,-1059.90963837,0.0002192,2]
[349745554,1737409845684,-1059.90963837,0.0002192,2]
[349745556,1737409845694,-1059.90963837,0.0002192,2]
[349745559,1737409845704,-1059.90963837,0.0002192,2]
[349745561,1737409845715,-1059.90963837,0.0002192,2]
[349745563,1737409845725,-1059.90963837,0.0002192,2]
[349745565,1737409845735,-1059.90963837,0.0002192,2]
[349745566,1737409845745,-1059.90963837,0.0002192,2]
[349745567,1737409845755,-1059.9,0.0002192,2]
[349745568,1737409845765,-2473.12248953,0.0002192,2]
[349745570,1737409845775,-2473.12248953,0.0002192,2]
[349745572,1737409845785,-2473.12248953,0.0002192,2]
[349745578,1737409845933,-2473.12248953,0.0002192,2]
[349745579,1737409845945,-2473.12248953,0.0002192,2]
[349745580,1737409845954,-2473.12248953,0.0002192,2]
[349745581,1737409845964,-2473.12248953,0.0002192,2]
[349745582,1737409845973,-2473.12248953,0.0002192,2]
[349745583,1737409845983,-2473.12248953,0.0002192,2]
[349745584,1737409845993,-2473.12248953,0.0002192,2]
[349745585,1737409846003,-2473.12248953,0.0002192,2]
[349745586,1737409846012,-2473.12248953,0.0002192,2]
[349745587,1737409846022,-2473.12248953,0.0002192,2]
[349745588,1737409846031,-2473.12248953,0.0002192,2]
[349745589,1737409846041,-2473.12248953,0.0002192,2]
[349745590,1737409846055,-2473.12248953,0.0002192,2]
[349745591,1737409846064,-2473.12248953,0.0002192,2]
[349745592,1737409846074,-2473.12248953,0.0002192,2]
[349745593,1737409846084,-2473.12248953,0.0002192,2]
[349745594,1737409846095,-2473.12,0.0002192,2]
[349745595,1737409846104,-537.38973346,0.0002192,2]
[349745596,1737409846113,-537.38973346,0.0002192,2]
[349745597,1737409846122,-537.38973346,0.0002192,2]
[349745598,1737409846132,-537.38973346,0.0002192,2]
[349745599,1737409846142,-537.38973346,0.0002192,2]
[349745600,1737409846151,-537.38973346,0.0002192,2]
[349745601,1737409846160,-537.38973346,0.0002192,2]
[349745602,1737409846170,-537.38973346,0.0002192,2]
[349745603,1737409846179,-537.38973346,0.0002192,2]
[349745604,1737409846189,-537.38973346,0.0002192,2]
[349745605,1737409846199,-537.38973346,0.0002192,2]